Workbook

Sheet мат 6
A6: Анализ контрольной работы за 2 четверть 2020/2021 учебного года поматематике, 6класс
D8: выполняли | F8: получили "5" | H8: получили "4" | J8: получили "3" | L8: получили "2" | N8: успеваемость | O8: качество | P8: средняя оценка
A9: № | B9: ОО | C9: кол-во учащихся (всего) | D9: кол-во участников | E9: % | F9: количество | G9: % | H9: количество | I9: % | J9: количество | K9: % | L9: количество | M9: %
A11: 1 | B11: СОШ № 1 | C11: 24 | D11: 21 | E11: 86% | F11: 1 | G11: 5% | H11: 8 | I11: 38% | J11: 9 | K11: 43% | L11: 3 | M11: 14% | N11: 86 | O11: 43 | P11: 3.33
A12: 2 | B12: СОШ № 2 | C12: 58 | D12: 52 | E12: 90 | F12: 6 | G12: 12 | H12: 20 | I12: 38 | J12: 23 | K12: 44 | L12: 4 | M12: 8 | N12: 92 | O12: 50 | P12: 3.6
A13: 3 | B13: СОШ № 3 | C13: 22 | D13: 20 | E13: 90.9 | F13: 0 | G13: 0 | H13: 11 | I13: 55 | J13: 8 | K13: 40 | L13: 1 | M13: 5 | N13: 95 | O13: 55 | P13: 3.5
A14: 4 | B14: Гимназия№4 | C14: 14 | D14: 14 | E14: 100 | F14: 1 | G14: 7,1 | H14: 4 | I14: 28,6 | J14: 8 | K14: 57 | L14: 1 | M14: 7,1 | N14: 93 | O14: 36 | P14: 3,3
A15: 5 | B15: СОШ № 5 | C15: 37 | D15: 36 | E15: 99% | F15: 11 | G15: 30.50% | H15: 4 | I15: 11.42% | J15: 17 | K15: 48.57% | L15: 3 | M15: 8.57% | N15: 91% | O15: 43% | P15: 3.65
A16: 6 | B16: СОШ № 6 | C16: 62 | D16: 52 | E16: 84% | F16: 0 | G16: 0% | H16: 0 | I16: 0% | J16: 35 | K16: 67% | L16: 17 | M16: 33% | N16: 67% | O16: 0% | P16: 2,7
A17: 7 | B17: СОШ №7 | C17: 42 | D17: 42 | E17: 100% | F17: 9 | G17: 21% | H17: 13 | I17: 31% | J17: 16 | K17: 38% | L17: 2 | M17: 4% | N17: 52% | O17: 95% | P17: 3.5
A18: 8 | B18: Александровская СОШ | C18: 8 | D18: 8 | E18: 100% | F18: 2 | G18: 25% | H18: 2 | I18: 25% | J18: 2 | K18: 25% | L18: 2 | M18: 25% | N18: 75% | O18: 50% | P18: 3.5
A19: 9 | B19: Алексеевская ООШ | C19: 6 | D19: 6 | E19: 100 | F19: 1 | G19: 16 | H19: 0 | I19: 0 | J19: 3 | K19: 50 | L19: 2 | M19: 33 | N19: 66 | O19: 16 | P19: 3
A20: 10 | B20: Исергаповская СОШ | C20: 5 | D20: 4 | E20: =(D20/C20)*100 -> 80 | H20: 2 | I20: =(H20/D20)*100 -> 50.0 | J20: 2 | K20: =(J20/D20)*100 -> 50.0 | N20: =(4/4)*100 -> 100.0 | O20: =(2/4)*100 -> 50.0 | P20: =14/4 -> 3.5
A21: 11 | B21: Кзыл-Ярская СОШ | C21: 20 | D21: 20 | E21: 100 | F21: 6 | G21: 30 | H21: 8 | I21: 40 | J21: 4 | K21: 20 | L21: 2 | M21: 10 | N21: 90% | O21: 70.00% | P21: 3,9
A22: 12 | B22: П-Урустамакская СОШ | C22: 11 | D22: 9 | E22: =100/C22*D22 -> 82 | F22: 1 | G22: =100/D22*F22 -> 11 | H22: 3 | I22: =100/D22*H22 -> 33 | J22: 2 | K22: =100/D22*J22 -> 22 | L22: 3 | M22: =100/D22*L22 -> 33.33333333 | N22: =100/D22*(F22+H22+J22) -> 67 | O22: =100/D22*(F22+H22) -> 44 | P22: =(5*F22+4*H22+3*J22+2*L22)/D22 -> 3.2
A23: 13 | B23: Шалтинская ООШ | C23: 3 | D23: 3 | E23: 100 | F23: 1 | G23: 33 | H23: 0 | I23: 0 | J23: 1 | K23: 33 | L23: 1 | M23: 0 | N23: 66 | O23: 33 | P23: 3.9
A24: 14 | B24: Ново-Чутинская ООШ | C24: 4 | D24: 4 | E24: 100 | F24: 0 | G24: 0 | H24: 1 | I24: 25 | J24: 1 | K24: 25 | L24: 2 | M24: 50 | N24: 50 | O24: 50 | P24: 2.7
A25: 15 | B25: Новозареченская СОШ | C25: 10 | D25: 10 | E25: 100 | F25: 1 | G25: 10 | H25: 6 | I25: 60 | J25: 3 | K25: 30 | L25: 0 | M25: 0 | N25: 100 | O25: 70 | P25: 3.8
A26: 16 | B26: Потапово-Тумбарлин ООШ | C26: 9 | D26: 9 | E26: 100 | F26: 2 | G26: 22 | H26: 2 | I26: 22 | J26: 4 | K26: 44 | L26: 1 | M26: 11 | N26: 44% | O26: 89% | P26: 3.56
A27: 17 | B27: Тат.Тумбарлинская СОШ | C27: 1 | D27: 1 | E27: 100 | F27: 0 | G27: 0 | H27: 1 | I27: 100% | J27: 0 | K27: 0% | L27: 0 | M27: 0 | N27: 100 | O27: 100 | P27: 4
A28: 18 | B28: Поповская СОШ | C28: 11 | D28: 11 | E28: 100 | F28: 0 | G28: 0 | H28: 5 | I28: 45.45 | J28: 6 | K28: 54.55 | L28: 0 | M28: 0 | N28: 100 | O28: 45.45 | P28: 3.3
A29: 19 | B29: Т.Кандызская СОШ | C29: 7 | D29: 7 | E29: 100 | F29: 1 | G29: 14.3 | H29: 4 | I29: 28.6 | J29: 3 | K29: 42.9 | L29: 1 | M29: 14.3 | N29: 85.8 | O29: 42.9 | P29: 3.4
A30: 20 | B30: Крым-Сарайская ООШ | C30: 10 | D30: 10 | E30: 100 | F30: 5 | G30: 50 | H30: 1 | I30: 10 | J30: 4 | K30: 40 | L30: 0 | M30: 0 | N30: 100 | O30: 60 | P30: 4.1
B31: район | C31: =SUM(C11:C31) -> 364 | D31: =SUM(D11:D31) -> 339 | E31: 93.1 | F31: 48 | G31: 14.2 | H31: 95 | I31: 28 | J31: 151 | K31: 44.5 | L31: 45 | M31: 13.3 | N31: 86.7 | O31: 42.2 | P31: 3.4

Sheet мат7
A2: Анализ контрольной работы за 2 четверть 2020/2021 учебного года по математике, 7класс
B3: ФИО учителя
D5: выполняли | F5: получили "5" | H5: получили "4" | J5: получили "3" | L5: получили "2" | N5: успеваемость | O5: качество | P5: средняя оценка
A6: № | B6: ОО | C6: кол-во учащихся (всего) | D6: кол-во участников | E6: % | F6: количество | G6: % | H6: количество | I6: % | J6: количество | K6: % | L6: количество | M6: %
B8: СОШ № 1 | C8: 23 | D8: 21 | E8: 91% | F8: 0 | G8: 0 | H8: 7 | I8: 33% | J8: 12 | K8: 57% | L8: 2 | M8: 10% | N8: 90% | O8: 33% | P8: 3.23
B9: СОШ № 2 | C9: 72 | D9: 69 | E9: 96 | F9: 10 | G9: 14 | H9: 12 | I9: 17 | J9: 40 | K9: 58 | L9: 7 | M9: 10 | N9: 90 | O9: 32 | P9: 3.4
B10: СОШ № 3 | C10: =SUM(C10:C11) -> 33 | D10: =SUM(D10:D11) -> 30 | E10: =AVERAGE(E10:E11) -> 91 | F10: 2 | G10: 6 | H10: 9 | I10: 30 | J10: 14 | K10: 47 | L10: 5 | M10: 17 | N10: =AVERAGE(N10:N11) -> 83.5 | O10: 37 | P10: 3.3
B11: Гимназия№4 | C11: 17 | D11: 15 | E11: 88 | F11: 0 | G11: 0 | H11: 6 | I11: 40 | J11: 9 | K11: 60 | L11: 0 | M11: 0 | N11: 100 | O11: 40 | P11: 3,4
B12: СОШ № 5 | C12: 36 | D12: 33 | E12: 94.28% | F12: 10 | G12: 30.30% | H12: 7 | I12: 21.20% | J12: 15 | K12: 45.45% | L12: 2 | M12: 6.06% | N12: 94% | O12: 52% | P12: 3.85
B13: СОШ № 6 | C13: 57 | D13: 53 | E13: 93% | F13: 4 | G13: 8% | H13: 16 | I13: 30% | J13: 26 | K13: 49% | L13: 7 | M13: 13% | N13: 87% | O13: 35% | P13: 3,3
B14: СОШ №7 | C14: 51 | D14: 41 | E14: 80% | F14: 13 | G14: 32% | H14: 16 | I14: 39% | J14: 11 | K14: 27% | L14: 2 | M14: 5% | N14: 95% | O14: 70% | P14: 4.0
B15: Александровская СОШ | C15: 15 | D15: 12 | E15: 80% | F15: 2 | G15: 17% | H15: 6 | I15: 50% | J15: 4 | K15: 33% | L15: 0 | M15: 0% | N15: 100% | O15: 66% | P15: 3.8
B16: Алексеевская ООШ | C16: 1 | D16: 1 | E16: 100 | F16: 0 | G16: 0 | H16: 0 | I16: 0 | J16: 1 | K16: 100 | L16: 0 | M16: 0 | N16: 100 | O16: 0 | P16: 3
B17: Исергаповская СОШ | C17: 12 | D17: 12 | E17: =(D17/C17)*100 -> 100 | F17: 1 | G17: =(1/12)*100 -> 8.3 | H17: 4 | I17: =(H17/D17)*100 -> 33.3 | J17: 7 | K17: =(J17/D17)*100 -> 58.3 | N17: =(12/12)*100 -> 100.0 | O17: =(5/12)*100 -> 41.7 | P17: =42/12 -> 3.5
B18: Кзыл-Ярская СОШ | C18: 7 | D18: 7 | E18: 100 | F18: 3 | G18: 42.8 | H18: 0 | I18: 0 | J18: 4 | K18: 57.1 | L18: 0 | M18: 0 | N18: 100% | O18: 42.80% | P18: 3,85
B19: П-Урустамакская СОШ | C19: 17 | D19: 14 | E19: =100/C19*D19 -> 82 | F19: 2 | G19: =100/D19*F19 -> 14 | H19: 4 | I19: =100/D19*H19 -> 29 | J19: 7 | K19: =100/D19*J19 -> 50 | L19: 1 | M19: 25 | N19: =100/D19*(F19+H19+J19) -> 93 | O19: =100/D19*(F19+H19) -> 43 | P19: =(5*F19+4*H19+3*J19+2*L19)/D19 -> 3.5
B20: Шалтинская ООШ | C20: 4 | D20: 4 | E20: 100 | F20: 0 | G20: 0 | H20: 2 | I20: 50 | J20: 1 | K20: 25 | L20: 1 | M20: 25 | N20: 75 | O20: 50 | P20: 3.2
B21: Ново-Чутинская ООШ | C21: 3 | D21: 3 | E21: 100 | F21: 0 | G21: 0 | H21: 1 | I21: 33 | J21: 2 | K21: 67 | L21: 0 | M21: 0 | N21: 100 | O21: 33 | P21: 3,7
B22: Новозареченская СОШ | C22: 3 | D22: 3 | E22: 100 | F22: 0 | G22: 0 | H22: 2 | I22: 67 | J22: 1 | K22: 33 | L22: 0 | M22: 0 | N22: 100 | O22: 67 | P22: 3.67
B23: Потапово-Тумбарлин ООШ | C23: 6 | D23: 6 | E23: 100 | F23: 1 | G23: 17 | H23: 2 | I23: 33 | J23: 2 | K23: 33 | L23: 1 | M23: 17 | N23: 83% | O23: 50% | P23: 3.5
B24: Тат.Тумбарлинская СОШ | C24: 6 | D24: 4 | E24: 100 | F24: 1 | G24: 20 | H24: 1 | I24: 20 | J24: 3 | K24: 50 | L24: 0 | M24: 0 | N24: 100 | O24: 40 | P24: 3.6
B25: Поповская СОШ | C25: 4 | D25: 4 | E25: 100 | F25: 0 | G25: 0 | H25: 2 | I25: 50 | J25: 2 | K25: 50 | L25: 0 | M25: 0 | N25: 100 | O25: 50 | P25: 3.5
B26: Т.Кандызская СОШ | C26: 5 | D26: 5 | E26: 100 | F26: 1 | G26: 20 | H26: 2 | I26: 40 | J26: 2 | K26: 0 | L26: 0 | M26: 0 | N26: 100 | O26: 60 | P26: 3.8
B27: Крым-Сарайская ООШ | C27: 1 | D27: 1 | E27: 100 | F27: 0 | G27: 0 | H27: 1 | I27: 100 | J27: 0 | K27: 0 | L27: 0 | M27: 0 | N27: 100 | O27: 100 | P27: 4
B28: район | C28: 373 | D28: 338 | E28: 90.6 | F28: 50 | G28: 14.8 | H28: 100 | I28: 29.6 | J28: 163 | K28: 48.2 | L28: 28 | M28: 8.3 | N28: 91.7 | O28: 44.4 | P28: 3.5

Sheet р.я 6
J2: приложение №1
J3: к приказу МКУ «ОО БМР РТ»
A5: Анализ контрольной работы за 2 четверть 2020/2021учебного года по русскому языку,6 класс
B6: ФИО учителя
D8: выполняли | F8: получили "5" | H8: получили "4" | J8: получили "3" | L8: получили "2" | N8: успеваемость | O8: качество | P8: средняя оценка
A9: № | B9: ОО | C9: кол-во учащихся (всего) | D9: кол-во участников | E9: % | F9: количество | G9: % | H9: количество | I9: % | J9: количество | K9: % | L9: количество | M9: %
B11: СОШ № 1 | C11: 24 | D11: 23 | E11: 95% | F11: 4 | G11: 17% | H11: 13 | I11: 57% | J11: 6 | K11: 26% | L11: 0 | M11: 0 | N11: 100% | O11: 74% | P11: 3.91%
B12: СОШ № 2 | C12: 58 | D12: 53 | E12: 91 | F12: 8 | G12: 15 | H12: 20 | I12: 38 | J12: 20 | K12: 38 | L12: 5 | M12: 9 | N12: 94 | O12: 53 | P12: 3.6
B13: СОШ № 3 | C13: 22 | D13: 19 | E13: 86% | F13: 0 | G13: 0% | H13: 7 | I13: 37% | J13: 9 | K13: 47% | L13: 3 | M13: 16% | N13: 85% | O13: 37% | P13: 3.2
B14: Гимназия№4 | C14: 14 | D14: 12 | E14: 100 | F14: 0 | G14: 0 | H14: 4 | I14: 33 | J14: 2 | K14: 16 | L14: 6 | M14: 49 | N14: 80 | O14: 33 | P14: 2,8
B15: СОШ № 5 | C15: 37 | D15: 35 | E15: 95% | F15: 1 | G15: 2.85% | H15: 17 | I15: 48.57% | J15: 10 | K15: 28.57% | L15: 3 | M15: 8.57% | N15: 91% | O15: 51% | P15: 3.1
B16: СОШ № 6 | C16: 59 | D16: 57 | E16: 97% | F16: 5 | G16: 9.00% | H16: 17 | I16: 30% | J16: 23 | K16: 40% | L16: 12 | M16: 21% | N16: 79% | O16: 39% | P16: 3,3
B17: СОШ №7 | C17: 42 | D17: 42 | E17: 100% | F17: 4 | G17: 9% | H17: 23 | I17: 54% | J17: 14 | K17: 33% | L17: 1 | M17: 2% | N17: 98% | O17: 64% | P17: 3.6
B18: Александровская СОШ | C18: 8 | D18: 8 | E18: 100% | F18: 1 | G18: 13% | H18: 3 | I18: 38% | J18: 1 | K18: 13% | L18: 3 | M18: 38% | N18: 63% | O18: 50% | P18: 3.25
B19: Алексеевская ООШ | C19: 6 | D19: 6 | E19: 100 | F19: 0 | G19: 0 | H19: 3 | I19: 50 | J19: 3 | K19: 50 | L19: 0 | M19: 0 | N19: 100 | O19: 50 | P19: 3.5
B20: Исергаповская СОШ | C20: 5 | D20: 4 | E20: =(D20/C20)*100 -> 80.0 | F20: 1 | G20: =(1/4)*100 -> 25.0 | H20: 1 | I20: =(H20/D20)*100 -> 25.0 | L20: 2 | M20: =(L20/D20)*100 -> 50.0 | N20: =(2/4)*100 -> 50.0 | O20: =(2/4)*100 -> 50.0 | P20: =11/4 -> 2.8
B21: Кзыл-Ярская СОШ | C21: 20 | D21: 20 | E21: 100 | F21: 2 | G21: 10/10 | H21: 7 | I21: 35/50 | J21: 9 | K21: 45/35 | L21: 2 | M21: 10/5 | N21: 90/95 | O21: 45/60 | P21: 3,45/3,65
B22: П-Урустамакская СОШ | C22: 11 | D22: 9 | E22: =100/C22*D22 -> 82 | F22: 1 | G22: =100/D22*F22 -> 11 | H22: 3 | I22: =100/D22*H22 -> 33 | J22: 2 | K22: =100/D22*J22 -> 22 | L22: 3 | M22: =100/D22*L22 -> 33.33333333 | N22: =100/D22*(F22+H22+J22) -> 67 | O22: =100/D22*(F22+H22) -> 44 | P22: =(5*F22+4*H22+3*J22+2*L22)/D22 -> 3.2
B23: Шалтинская ООШ | C23: 3 | D23: 3 | E23: 100 | F23: 0 | G23: 0 | H23: 2 | I23: 66 | J23: 1 | K23: 33 | L23: 0 | M23: 0 | N23: 100 | O23: 66 | P23: 3.6
B24: Ново-Чутинская ООШ | C24: 4 | D24: 4 | E24: 100 | F24: 0 | G24: 0 | H24: 1 | I24: 25 | J24: 2 | K24: 50 | L24: 1 | M24: 25 | N24: 100 | O24: 75 | P24: 3
B25: Новозареченская СОШ | C25: 11 | D25: 10 | E25: 91 | F25: 2 | G25: 40 | H25: 0 | I25: 0 | J25: 5 | K25: 50 | L25: 3 | M25: 30 | N25: 70 | O25: 20 | P25: 3.1
B26: Потапово-Тумбарлин ООШ | C26: 9 | D26: 9 | E26: 100 | F26: 0. | G26: 0 | H26: 2 | I26: 22\55 | J26: 2 | K26: 22\33 | L26: 5 | M26: 55\11 | N26: 44\89 | O26: 22\56 | P26: 2,67\3,44
B27: Тат.Тумбарлинская СОШ | C27: 1 | D27: 1 | E27: 100 | F27: 0 | G27: 0 | H27: 1 | I27: 50% | J27: 0 | K27: 0% | L27: 0 | M27: 0 | N27: 100 | O27: 50 | P27: 4
B28: Поповская СОШ | C28: 11 | D28: 11 | E28: 100 | F28: 0/3 | G28: 0/27 | H28: 5 | I28: 45/27 | J28: 5 | K28: 45/45 | L28: 1 | M28: 9/0 | N28: 90/100 | O28: 45/54 | P28: 3,36/3,82
B29: Т.Кандызская СОШ | C29: 6 | D29: 6 | E29: 100 | F29: 1 | G29: 14,3/28,6 | H29: 3 | I29: 42,9/42,9 | J29: 2 | K29: 28,6/14,3 | L29: 1 | M29: 14,3/14,3 | N29: 85,2/85,2 | O29: 57,1/71 | P29: 3,5/3,8
B30: Крым-Сарайская ООШ | C30: 10 | D30: 10 | E30: 100 | F30: 1 | G30: 10 | H30: 4 | I30: 40 | J30: 5 | K30: 50 | L30: 0 | M30: 0 | N30: 100 | O30: 50 | P30: 3.6
B31: район | C31: 361 | D31: 342 | E31: 94.7 | F31: 33 | G31: 9.6 | H31: 136 | I31: 39.8 | J31: 121 | K31: 35.4 | L31: 51 | M31: 14.9 | N31: 85.1 | O31: 49.4 | P31: 3.4

Sheet р.я 7
J2: приложение №1
J3: к приказу МКУ «ОО БМР РТ»
A6: Анализ контрольной работы за 2 четверть 2020/2021учебного года порусскому языку, 7 класс
B7: ФИО учителя
D9: выполняли | F9: получили "5" | H9: получили "4" | J9: получили "3" | L9: получили "2" | N9: успеваемость | O9: качество | P9: средняя оценка
A10: № | B10: ОО | C10: кол-во учащихся (всего) | D10: кол-во участников | E10: % | F10: количество | G10: % | H10: количество | I10: % | J10: количество | K10: % | L10: количество | M10: %
B12: СОШ № 1 | C12: 23 | D12: 16 | E12: 70% | F12: 3 | G12: 18% | H12: 11 | I12: 68% | J12: 2 | K12: 12% | L12: 0 | M12: 0 | N12: 100% | O12: 87% | P12: 4.06%
B13: СОШ № 2 | C13: 73 | D13: 65 | E13: 89 | F13: 4 | G13: 6 | H13: 36 | I13: 55 | J13: 23 | K13: 35 | L13: 2 | M13: 3 | N13: 97 | O13: 62 | P13: 3.6
B14: СОШ № 3 | C14: 35 | D14: =SUM(D14:D15) -> 29 | E14: 88 | F14: 4 | G14: 14 | H14: 16 | I14: 62 | J14: 7 | K14: 24 | L14: 2 | M14: 7 | N14: =AVERAGE(N14:N15) -> 92 | O14: 69 | P14: =AVERAGE(P14:P15) -> 3.7
B15: Гимназия№4 | C15: 17 | D15: 17 | E15: 100 | F15: 7 | G15: 40 | H15: 8 | I15: 46,4 | J15: 2 | K15: 11,6 | L15: 0 | M15: 0 | N15: 100 | O15: 88 | P15: 4,2
B16: СОШ № 5 | C16: 36 | D16: 32 | E16: 88.9 | F16: 3 | G16: 9.37% | H16: 12 | I16: 37.50% | J16: 17 | K16: 53.10% | N16: 100 | O16: 46.87% | P16: 3.56
B17: СОШ № 6 | C17: 57 | D17: 54 | E17: 95% | F17: 1 | G17: 2% | H17: 22 | I17: 41% | J17: 23 | K17: 43% | L17: 9 | M17: 17% | N17: 83% | O17: 43% | P17: 3,3
B18: СОШ №7 | C18: 51 | D18: 46 | E18: 90% | F18: 6 | G18: 13% | H18: 21 | I18: 46% | J18: 17 | K18: 37% | L18: 2 | M18: 4% | N18: 96% | O18: 57% | P18: 3.2
B19: Александровская СОШ | C19: 15 | D19: 14 | E19: 93% | F19: 2 | G19: 10% | H19: 8 | I19: 57% | J19: 3 | K19: 25% | L19: 0 | M19: 0% | N19: 100% | O19: 71% | P19: 3.6
B20: Алексеевская ООШ | C20: 1 | D20: 1 | E20: 100 | F20: 0 | G20: 0 | H20: 0 | I20: 0 | J20: 1 | K20: 100 | L20: 0 | M20: 0 | N20: 100 | O20: 0 | P20: 3
B21: Исергаповская СОШ | C21: 12 | D21: 11 | E21: =(D21/C21)*100 -> 91.7 | F21: 3 | G21: =(3/11)*100 -> 27.3 | H21: 2 | I21: =(H21/D21)*100 -> 18.2 | J21: 6 | K21: =(J21/D21)*100 -> 54.5 | N21: =(5/11)*100 -> 45.5 | O21: =(11/11)*100 -> 100.0 | P21: =41/11 -> 3.7
B22: Кзыл-Ярская СОШ | C22: 7 | D22: 7 | E22: 100 | F22: 0 | G22: 0/28,6 | H22: 5 | I22: 71,4/71,4 | J22: 0 | K22: 0 | L22: 2 | M22: 28,6/0 | N22: 71/100 | O22: 71/100 | P22: 3,4/4,3
B23: П-Урустамакская СОШ | C23: 17 | D23: 17 | E23: =100/C23*D23 -> 100 | F23: 7 | G23: =100/D23*F23 -> 41 | H23: 7 | I23: =100/D23*H23 -> 41 | J23: 3 | K23: =100/D23*J23 -> 18 | L23: 4 | M23: =100/D23*L23 -> 23.52941176 | N23: =100/D23*(F23+H23+J23) -> 100 | O23: =100/D23*(F23+H23) -> 82 | P23: =(5*F23+4*H23+3*J23+2*L23)/D23 -> 4.7
B24: Шалтинская ООШ | C24: 4 | D24: 4 | E24: 100 | F24: 0 | G24: 0 | H24: 2 | I24: 50 | J24: 2 | K24: 50 | L24: 0 | M24: 0 | N24: 100 | O24: 50 | P24: 3.5
B25: Ново-Чутинская ООШ | C25: 3 | D25: 3 | E25: 100 | F25: 0 | G25: 0 | H25: 2 | I25: 67 | J25: 1 | K25: 33 | L25: 0 | M25: 0 | N25: 100 | O25: 67 | P25: 3.7
B26: Новозареченская СОШ | C26: 3 | D26: 3 | E26: 100 | F26: 0 | G26: 0 | H26: 3 | I26: 100 | J26: 0 | K26: 0 | L26: 0 | M26: 0 | N26: 100 | O26: 100 | P26: 4
B27: Потапово-Тумбарлин ООШ | C27: 6 | D27: 6 | E27: 100 | F27: 3 | G27: 50\33 | H27: 2 | I27: 33\33 | J27: 1 | K27: 17\33 | L27: 0 | M27: 0 | N27: 100\100 | O27: 83\67 | P27: 4,33\4
B28: Тат.Тумбарлинская СОШ | C28: 6 | D28: 5 | E28: 83.3 | F28: 0 | G28: 0 | H28: 3 | I28: 60 | J28: 2 | K28: 40 | L28: 0 | M28: 0 | N28: 100 | O28: 60 | P28: 3.6
B29: Поповская СОШ | C29: 4 | D29: 4 | E29: 100 | F29: 2 | G29: 50/50 | H29: 2 | I29: 50/50 | J29: 2 | K29: 50/50 | L29: 0 | M29: 0/0 | N29: 100/100 | O29: 100/50 | P29: 4,5/4
B30: Т.Кандызская СОШ | C30: 5 | D30: 5 | E30: 100 | F30: 0 | G30: 0/0 | H30: 2 | I30: 40/40 | J30: 2 | K30: 40/20 | L30: 1 | M30: 20/40 | N30: 80/60 | O30: 40/40 | P30: 3,2/3
B31: Крым-Сарайская ООШ | C31: 1 | D31: 1 | E31: 100 | F31: 0 | G31: 0 | H31: 0 | I31: 0 | J31: 1 | K31: 100 | L31: 0 | M31: 0 | N31: 100 | O31: 0 | P31: 3
B32: район | C32: 376 | D32: 340 | E32: 90.4 | F32: 45 | G32: 13.2 | H32: 164 | I32: 48.2 | J32: 115 | K32: 33.8 | L32: 22 | M32: 6.5 | N32: 93.5 | O32: 61.5 | P32: 3.7

Sheet хим8
A1: Анализ контрольной работы за 2 четверть 2020/2021 учебного года по химии, 8 класс
C2: выполняли | E2: получили "5" | G2: получили "4" | I2: получили "3" | K2: получили "2" | M2: успеваемость | N2: качество | O2: средняя оценка
A3: ОО | B3: кол-во учащихся (всего) | C3: кол-во участников | D3: % | E3: количество | F3: % | G3: количество | H3: % | I3: количество | J3: % | K3: количество | L3: %
A4: СОШ № 1 | B4: 16 | C4: 16 | D4: 94.00% | E4: 1 | F4: 7% | G4: 6 | H4: 40% | I4: 8 | J4: 53% | K4: 0 | L4: 7% | M4: 100% | N4: 47% | O4: 3.53
A5: СОШ № 2 | B5: 48 | C5: 43 | D5: 90.00 | E5: 2 | F5: 5.00 | G5: 15 | H5: 35.00 | I5: 27 | J5: 63.00 | K5: 0 | M5: 100 | N5: 40.00 | O5: 3.5
A6: СОШ № 3 | B6: 24 | C6: 24 | D6: 87.5 | E6: 2 | F6: 9.5 | G6: 8 | H6: 38 | I6: 7 | J6: 33 | K6: 4 | L6: 19.00% | M6: 80.00% | N6: 47.6 | O6: 3,3
A7: Гимназия№4 | B7: 19 | C7: 19 | D7: 100 | E7: 1 | F7: 5,2 | G7: 6 | H7: 31,2 | I7: 12 | J7: 62,4 | K7: 0 | L7: 0 | M7: 100 | N7: 36,4 | O7: 3,4
A8: СОШ № 5 | B8: 41 | C8: 39 | D8: 99.04% | E8: 6 | F8: 15.38% | G8: 18 | H8: 46.15% | I8: 15 | J8: 38.46% | M8: 100% | N8: 62% | O8: 3.76
A9: СОШ № 6 | B9: 51 | C9: 51 | D9: 73% | E9: 1 | F9: 3% | G9: 9 | H9: 24% | I9: 19 | J9: 51% | K9: 8 | L9: 22% | M9: 78% | N9: 27% | O9: 3,1
A10: СОШ №7 | B10: 45 | C10: 40 | D10: 89% | E10: 1 | F10: 2% | G10: 16 | H10: 40% | I10: 23 | J10: 57% | M10: 100% | N10: 42% | O10: 3.5
A11: Александровская СОШ | B11: 8 | C11: 8 | D11: 75% | E11: 2 | F11: 33% | G11: 0 | H11: 0% | I11: 4 | J11: 67% | K11: 0 | L11: 0 | M11: 100% | N11: 33% | O11: 3.6
A12: Алексеевская ООШ | B12: 6 | C12: 6 | D12: 100 | E12: 0 | F12: 0 | G12: 2 | H12: 33 | I12: 4 | J12: 67 | K12: 0 | L12: 0 | M12: 100 | N12: 33 | O12: 3.3
A13: Исергаповская СОШ | B13: 8 | C13: 8 | D13: =(C13/B13)*100 -> 100 | G13: 2 | H13: =(G13/C13)*100 -> 25.0 | I13: 4 | J13: =(I13/C13)*100 -> 50.0 | K13: 1 | L13: =(K13/C13)*100 -> 12.5 | M13: =(6/7)*100 -> 85.7 | N13: =(2/7)*100 -> 28.6 | O13: =22/7 -> 3.1
A14: Кзыл-Ярская СОШ | B14: 17 | C14: 17 | D14: 94 | E14: 1 | F14: 6 | G14: 7 | H14: 43.7 | I14: 8 | J14: 50 | K14: 0 | L14: 0 | M14: 100 | N14: 50 | O14: 3.6
A15: П-Урустамакская СОШ | B15: 13 | C15: 13 | D15: =100/B15*C15 -> 100 | E15: 2 | F15: 0 | G15: 5 | H15: =100/C15*G15 -> 38 | I15: 2 | J15: =100/C15*I15 -> 15 | K15: 3 | L15: =100/C15*K15 -> 23.07692308 | M15: 75 | N15: 44 | O15: 3.3
A16: Шалтинская ООШ | B16: 3 | C16: 3 | D16: 100 | E16: 1 | F16: 33 | G16: 1 | H16: 33 | I16: 1 | J16: 33 | K16: 0 | L16: 0 | M16: 100 | N16: 66 | O16: 4
A17: Ново-Чутинская ООШ | B17: 1 | C17: 1 | D17: 100 | E17: 0 | F17: 0 | G17: 1 | H17: 100 | I17: 0 | J17: 0 | K17: 0 | L17: 0 | M17: 100 | N17: 100 | O17: 1
A18: Новозареченская СОШ | B18: 5 | C18: 5 | D18: 100 | E18: 0 | F18: 0 | G18: 3 | H18: 60 | I18: 2 | J18: 40 | K18: 0 | L18: 0 | M18: 100 | N18: 60 | O18: 3.6
A19: Потапово-Тумбарлин ООШ | B19: 8 | C19: 8 | D19: 100 | E19: 0 | F19: 0 | G19: 2 | H19: 25 | I19: 6 | J19: 75 | K19: 0 | L19: 0 | M19: 100 | N19: 25 | O19: 3.25
A20: Тат.Тумбарлинская СОШ | B20: 6 | C20: 6 | D20: 100 | E20: 0 | F20: 0 | G20: 3 | H20: 50 | I20: 3 | J20: 50 | K20: 0 | L20: 0 | M20: 100 | N20: 50 | O20: 3.5
A21: Поповская СОШ | B21: 8 | C21: 8 | D21: 100 | E21: 3 | F21: 37.5 | G21: 2 | H21: 25 | I21: 3 | J21: 37.5 | K21: 0 | L21: 0 | M21: 100 | N21: 62.5 | O21: 4
A22: Т.Кандызская СОШ | B22: 5 | C22: 5 | D22: 100 | E22: 0 | F22: 0 | G22: 4 | H22: 80 | I22: 1 | J22: 20 | K22: 0 | L22: 0 | M22: 100 | N22: 80 | O22: 3.8
A23: Крым-Сарайская ООШ | B23: 1 | C23: 1 | D23: 100 | E23: 0 | F23: 0 | G23: 0 | H23: 0 | I23: 3 | J23: 100 | K23: 0 | L23: 0 | M23: 100 | N23: 0 | O23: 3
A24: район | B24: =SUM(B4:B23) -> 333 | C24: =SUM(C4:C23) -> 321 | D24: 96.4 | E24: 23 | F24: 7.2 | G24: 110 | H24: 34.3 | I24: 152 | J24: 47.4 | K24: 16 | L24: 5 | M24: 95 | N24: 41.4 | O24: 3.2

Sheet физика8
I2: приложение №1
I3: к приказу МКУ «ОО БМР РТ»
A5: Анализ контрольной работы за 2 четверть 2020/2021 учебного года по физике, 8класс
C6: выполняли | E6: получили "5" | G6: получили "4" | I6: получили "3" | K6: получили "2" | M6: успеваемость | N6: качество | O6: средняя оценка
A7: ОО | B7: кол-во учащихся (всего) | C7: кол-во участников | D7: % | E7: количество | F7: % | G7: количество | H7: % | I7: количество | J7: % | K7: количество | L7: %
A8: СОШ № 1 | B8: 16 | C8: 15 | D8: 15 | E8: 0 | F8: 0 | G8: 7 | H8: 47% | I8: 8 | J8: 53% | K8: 0 | L8: 0 | M8: 100% | N8: 47% | O8: 3.46
A9: СОШ № 2 | B9: 48 | C9: 46 | D9: 96 | E9: 1 | F9: 2 | G9: 21 | H9: 46 | I9: 22 | J9: 48 | K9: 2 | L9: 4 | M9: 96 | N9: 48 | O9: 3.5
A10: СОШ № 3 | B10: 24 | C10: 20 | D10: 20 | E10: 1 | F10: 4.2 | G10: 6 | H10: 25 | I10: 13 | J10: 54 | K10: 0 | L10: 0 | M10: 100 | N10: 29 | O10: 3.4
A11: Гимназия№4 | B11: 19 | C11: 19 | D11: 19 | E11: 0 | F11: 0 | G11: 3 | H11: 15,6 | I11: 15 | J11: 78 | K11: 1 | L11: 5,2 | M11: 100 | N11: 15,6 | O11: 3,10
A12: СОШ № 5 | B12: 41 | C12: 36 | D12: 87.80% | E12: 2 | F12: 5.55% | G12: 16 | H12: 44.40% | I12: 21 | J12: 58.30% | M12: 100.00% | N12: 50% | O12: 3.8
A13: СОШ № 6 | B13: 51 | C13: 44 | D13: 44 | E13: 2 | F13: 4.50% | G13: 9 | H13: 20% | I13: 28 | J13: 64% | K13: 3 | L13: 7% | M13: 93% | N13: 25% | O13: 3,1
A14: СОШ №7 | B14: 45 | C14: 35 | D14: 45% | E14: 4 | F14: 11% | G14: 14 | H14: 40% | I14: 17 | J14: 48% | K14: 0 | M14: 100% | N14: 51% | O14: 3.6
A15: Александровская СОШ | B15: 8 | C15: 8 | D15: 8 | E15: 0 | F15: 0% | G15: 3 | H15: 37% | I15: 4 | J15: 50% | K15: 1 | L15: 13% | M15: 88% | N15: 37% | O15: 3.25
A16: Алексеевская ООШ | B16: 6 | C16: 6 | D16: 6 | E16: 0 | F16: 0 | G16: 2 | H16: 66 | I16: 4 | J16: 66 | K16: 0 | L16: 0 | M16: 100 | N16: 33 | O16: 3.3
A17: Исергаповская СОШ | B17: 8 | C17: 6 | D17: 6 | G17: 2 | H17: =(G17/C17)*100 -> 33.3 | I17: 4 | J17: =(I17/C17)*100 -> 66.7 | M17: =(4/6)*100 -> 66.7 | N17: =(2/6)*100 -> 33.3 | O17: =20/6 -> 3.3
A18: Кзыл-Ярская СОШ | B18: 17 | C18: 15 | D18: 15 | E18: 1 | F18: 7 | G18: 5 | H18: 33 | I18: 9 | J18: 60 | K18: 0 | L18: 0 | M18: 100% | N18: 40.00% | O18: 3,.5%
A19: П-Урустамакская СОШ | B19: 13 | C19: 10 | D19: 10 | E19: 1 | F19: =100/C19*E19 -> 10 | G19: 4 | H19: =100/C19*G19 -> 40 | I19: 4 | J19: =100/C19*I19 -> 40 | K19: 1 | L19: =100/C19*K19 -> 10 | M19: =100/C19*(E19+G19+I19) -> 90 | N19: =100/C19*(E19+G19) -> 50 | O19: =(5*E19+4*G19+3*I19+2*K19)/C19 -> 3.5
A20: Шалтинская ООШ | B20: 3 | C20: 3 | D20: 100 | E20: 0 | F20: 0 | G20: 1 | H20: 33 | I20: 2 | J20: 66 | K20: 0 | L20: 0 | M20: 100 | N20: 33 | O20: 3.3
A21: Ново-Чутинская ООШ | B21: 1 | C21: 1 | D21: 1 | E21: 0 | F21: 0 | G21: 0 | H21: 0 | I21: 1 | J21: 100 | K21: 0 | L21: 0 | M21: 100 | N21: 0 | O21: 3
A22: Новозареченская СОШ | B22: 5 | C22: 5 | D22: 5 | E22: 0 | F22: 0 | G22: 2 | H22: 40 | I22: 3 | J22: 60 | K22: 0 | L22: 0 | M22: 100 | N22: 40 | O22: 3.4
A23: Потапово-Тумбарлин ООШ | B23: 8 | C23: 8 | D23: 100 | E23: 0 | F23: 0 | G23: 3 | H23: 37.5 | I23: 4 | J23: 50 | K23: 1 | L23: 12.2 | M23: 87.5 | N23: 37.5 | O23: 3.25
A24: Тат.Тумбарлинская СОШ | B24: 6 | C24: 6 | D24: 6 | E24: 1 | F24: 16.6 | G24: 1 | H24: 16.6 | I24: 2 | J24: 33.3 | K24: 1 | L24: 16.6 | M24: 83.3 | N24: 33.3 | O24: 4
A25: Поповская СОШ | B25: 8 | C25: 8 | D25: 100 | E25: 0 | F25: 0 | G25: 4 | H25: 50 | I25: 4 | J25: 50 | K25: 0 | L25: 0 | M25: 100 | N25: 50 | O25: 3.5
A26: Т.Кандызская СОШ | B26: 5 | C26: 5 | D26: 5 | E26: 1 | F26: 20 | G26: 0 | H26: 0 | I26: 4 | J26: 80 | K26: 0 | L26: 0 | M26: 100 | N26: 20 | O26: 3.4
A27: Крым-Сарайская ООШ | B27: 1 | C27: 1 | D27: 1 | E27: 0 | F27: 0 | G27: 0 | H27: 0 | I27: 1 | J27: 100 | K27: 0 | L27: 0 | M27: 100 | N27: 0 | O27: 3
A28: район | B28: =SUM(B8:B27) -> 333 | C28: 297 | D28: 89.2 | E28: 14 | F28: 4.7 | G28: 103 | H28: 34.7 | I28: 170 | J28: 57.2 | K28: 10 | L28: 3.4 | M28: 96.6 | N28: 39.4 | O28: 3.4

Sheet матем8
A3: Анализ контрольной работы за 2 четверть2020/2021учебного года по математике, 8 класс
C4: выполняли | E4: получили "5" | G4: получили "4" | I4: получили "3" | K4: получили "2" | M4: успеваемость | N4: качество | O4: средняя оценка
A5: ОО | B5: кол-во учащихся (всего) | C5: кол-во участников | D5: % | E5: количество | F5: % | G5: количество | H5: % | I5: количество | J5: % | K5: количество | L5: %
A6: СОШ № 1 | B6: 16 | C6: 15 | D6: 94% | E6: 0 | F6: 0 | G6: 3 | H6: 20% | I6: 9 | J6: 60% | K6: 3 | L6: 20% | M6: 80% | N6: 25% | O6: 3
A7: СОШ № 2 | B7: 48 | C7: 47 | D7: 98 | E7: 1 | F7: 2 | G7: 9 | H7: 19 | I7: 33 | J7: 70 | K7: 4 | L7: 9 | M7: 91 | N7: 21 | O7: 3.1
A8: СОШ № 3 | B8: 24 | C8: 21 | D8: 92 | E8: 2 | F8: 9.5 | G8: 8 | H8: 38.1 | I8: 8 | J8: 38.1 | K8: 3 | L8: 14.3 | M8: 86 | N8: 48 | O8: 3.4
A9: Гимназия№4 | B9: 19 | C9: 19 | D9: 100 | E9: 0 | F9: 0 | G9: 4 | H9: 20,8 | I9: 10 | J9: 52 | K9: 5 | L9: 26 | M9: 100 | N9: 20,8 | O9: 2,9
A10: СОШ № 5 | B10: 41 | C10: 36 | D10: 87.80% | E10: 1 | F10: 2.77% | G10: 5 | H10: 13.88% | I10: 21 | J10: 58.33% | K10: 9 | L10: 25% | M10: 75.00% | N10: 16.66% | O10: 2.38
A11: СОШ № 6 | B11: 51 | C11: 43 | D11: 84% | E11: 3 | F11: 7% | G11: 10 | H11: 23% | I11: 18 | J11: 42% | K11: 12 | L11: 28% | M11: 72% | N11: 30% | O11: 3,1
A12: СОШ №7 | B12: 45 | C12: 42 | D12: 93% | E12: 3 | F12: 7% | G12: 19 | H12: 45% | I12: 19 | J12: 45% | K12: 1 | L12: 7% | M12: 98% | N12: 52% | O12: 3.6
A13: Александровская СОШ | B13: 8 | C13: 8 | D13: 100% | E13: 0 | F13: 0% | G13: 5 | H13: 63% | I13: 3 | J13: 37% | K13: 0 | L13: 0% | M13: 100% | N13: 63% | O13: 4
A14: Алексеевская ООШ | B14: 6 | C14: 6 | D14: 100 | E14: 0 | F14: 0 | G14: 3 | H14: 50 | I14: 3 | J14: 50 | K14: 0 | L14: 0 | M14: 100 | N14: 50 | O14: 3.5
A15: Исергаповская СОШ | B15: 8 | C15: 7 | D15: =(C15/B15)*100 -> 87.5 | I15: 6 | J15: =(I15/C15)*100 -> 85.7 | K15: 1 | L15: =(K15/C15)*100 -> 14.3 | M15: =(7/8)*100 -> 87.5 | N15: 0.0 | O15: =20/7 -> 2.9
A16: Кзыл-Ярская СОШ | B16: 17 | C16: 16 | D16: 94 | E16: 1 | F16: 6 | G16: 5 | H16: 31.25 | I16: 7 | J16: 43.7 | K16: 3 | L16: 18.7 | M16: 81% | N16: 37.50% | O16: 3,.25%
A17: П-Урустамакская СОШ | B17: 13 | C17: 12 | D17: =100/B17*C17 -> 92 | E17: 4 | F17: =100/C17*E17 -> 33 | G17: 4 | H17: =100/C17*G17 -> 33 | I17: 3 | J17: =100/C17*I17 -> 25 | K17: 1 | L17: =100/C17*K17 -> 8.333333333 | M17: =100/C17*(E17+G17+I17) -> 92 | N17: =100/C17*(E17+G17) -> 67 | O17: =(5*E17+4*G17+3*I17+2*K17)/C17 -> 3.9
A18: Шалтинская ООШ | B18: 3 | C18: 3 | D18: 100 | E18: 0 | F18: 0 | G18: 0 | H18: 0 | I18: 3 | J18: 100 | K18: 0 | L18: 0 | M18: 100 | N18: 0 | O18: 3
A19: Ново-Чутинская ООШ | B19: 1 | C19: 1 | D19: 100 | E19: 0 | F19: 0 | G19: 0 | H19: 0 | I19: 1 | J19: 100 | K19: 0 | L19: 0 | M19: 100 | N19: 0 | O19: 3
A20: Новозареченская СОШ | B20: 5 | C20: 5 | D20: 100 | E20: 0 | F20: 0 | G20: 2 | H20: 40 | I20: 3 | J20: 60 | K20: 0 | L20: 0 | M20: 100 | N20: 40 | O20: 3.4
A21: Потапово-Тумбарлин ООШ | B21: 8 | C21: 8 | D21: 100 | E21: 0 | F21: 0 | G21: 2 | H21: 25 | I21: 5 | J21: 62.5 | K21: 1 | L21: 12.5 | M21: 87.5 | N21: 25 | O21: 3.13
A22: Тат.Тумбарлинская СОШ | B22: 6 | C22: 6 | D22: 100 | E22: 1 | F22: 16.6 | G22: 1 | H22: 16.6 | I22: 4 | J22: 66.6 | K22: 0 | L22: 0 | M22: 100 | N22: 40 | O22: 3.6
A23: Поповская СОШ | B23: 8 | C23: 8 | D23: 100 | E23: 1 | F23: 12.5 | G23: 3 | H23: 37.5 | I23: 4 | J23: 50 | K23: 0 | L23: 0 | M23: 100 | N23: 50 | O23: 3.63
A24: Т.Кандызская СОШ | B24: 5 | C24: 5 | D24: 100 | E24: 1 | F24: 20 | G24: 0 | H24: 0 | I24: 3 | J24: 80 | K24: 1 | L24: 20 | M24: 80 | N24: 20 | O24: 3.2
A25: Крым-Сарайская ООШ | B25: 1 | C25: 1 | D25: 100 | E25: 0 | F25: 0 | G25: 0 | H25: 0 | I25: 1 | J25: 100 | K25: 0 | L25: 0 | M25: 100 | N25: 0 | O25: 3
A26: район | B26: =SUM(B6:B25) -> 333 | C26: 309 | D26: 92.8 | E26: 18 | F26: 5.8 | G26: 83 | H26: 26.9 | I26: 164 | J26: 53.1 | K26: 44 | L26: 14.2 | M26: 85.8 | N26: 32.7 | O26: 3.2

Sheet физика9
B1: Анализ контрольной работы за 2 четверть 2020/2021учебного года пофизике, 9 класс
C2: выполняли | E2: получили "5" | G2: получили "4" | I2: получили "3" | K2: получили "2" | M2: успеваемость | N2: качество | O2: средняя оценка
A3: ОО | B3: кол-во учащихся (всего) | C3: кол-во участников | D3: % | E3: количество | F3: % | G3: количество | H3: % | I3: количество | J3: % | K3: количество | L3: %
A5: СОШ № 1 | B5: 14 | C5: 13 | D5: 93.00% | E5: 0 | F5: 0 | G5: 7 | H5: 53% | I5: 6 | J5: 47% | K5: 0 | L5: 0 | M5: 100% | N5: 53% | O5: 4
A6: СОШ № 2 | B6: 54 | C6: 48 | D6: 89 | E6: 0 | F6: 0 | G6: 12 | H6: 25 | I6: 32 | J6: 67 | K6: 6 | L6: 13 | M6: 87 | N6: 25 | O6: 3.4
A7: СОШ № 3 | B7: 16 | C7: 14 | D7: 87 | E7: 0 | F7: 0 | G7: 7 | H7: 50 | I7: 7 | J7: 50 | K7: 0 | L7: 0 | M7: 100 | N7: 50 | O7: 3.5
A8: Гимназия№4 | B8: 7 | C8: 7 | D8: 100 | E8: 0 | F8: 0 | G8: 0 | H8: 0 | I8: 5 | J8: 71 | K8: 2 | L8: 28,4 | M8: 100 | N8: 0 | O8: 2,7
A9: СОШ № 5 | B9: 37 | C9: 35 | D9: 94.59% | G9: 23 | H9: 65.71% | I9: 12 | J9: 34.28% | M9: 100.00% | N9: 65.71% | O9: 3.65
A10: СОШ № 6 | B10: 44 | C10: 40 | D10: 91% | E10: 0 | F10: 0.00% | G10: 9 | H10: 23% | I10: 24 | J10: 60% | K10: 7 | L10: 18% | M10: 82% | N10: 23% | O10: 3,1
A11: СОШ №7 | B11: 44 | C11: 39 | D11: 87% | E11: 4 | F11: 10% | G11: 13 | H11: 33 | I11: 18 | J11: 46% | K11: 4 | L11: 10% | M11: 90% | N11: 43% | O11: 3.5
A12: Александровская СОШ | B12: 10 | C12: 9 | D12: 90% | E12: 0 | F12: 0% | G12: 1 | H12: 11% | I12: 7 | J12: 77% | K12: 1 | L12: 11% | M12: 89% | N12: 11% | O12: 3
A13: Алексеевская ООШ | B13: 2 | C13: 2 | D13: 100 | E13: 0 | F13: 0 | G13: 0 | H13: 0 | I13: 2 | J13: 100 | K13: 0 | L13: 0 | M13: 100 | N13: 0 | O13: 3
A14: Исергаповская СОШ | B14: 8 | C14: 8 | D14: =(C14/B14)*100 -> 100 | G14: 3 | H14: =(G14/C14)*100 -> 37.5 | I14: 4 | J14: =(I14/C14)*100 -> 50.0 | K14: 1 | L14: =(K14/C14)*100 -> 12.5 | M14: =(7/8)*100 -> 87.5 | N14: =(3/8)*100 -> 37.5 | O14: =26/8 -> 3.3
A15: Кзыл-Ярская СОШ | B15: 10 | C15: 8 | D15: 80 | E15: 0 | F15: 0 | G15: 3 | H15: 38 | I15: 5 | J15: 63 | K15: 0 | L15: 0 | M15: 100% | N15: 38.00% | O15: 3.40%
A16: П-Урустамакская СОШ | B16: 9 | C16: 9 | D16: =100/B16*C16 -> 100 | E16: 0 | F16: =100/C16*E16 -> 0 | G16: 2 | H16: =100/C16*G16 -> 22 | I16: 7 | J16: =100/C16*I16 -> 78 | K16: 0 | L16: =100/C16*K16 -> 0 | M16: =100/C16*(E16+G16+I16) -> 100 | N16: =100/C16*(E16+G16) -> 22 | O16: =(5*E16+4*G16+3*I16+2*K16)/C16 -> 3.2
A17: Шалтинская ООШ | B17: 4 | C17: 4 | D17: 100 | E17: 0 | F17: 0 | G17: 0 | H17: 0 | I17: 4 | J17: 100 | K17: 0 | L17: 0 | M17: 100 | N17: 0 | O17: 3
A18: Ново-Чутинская ООШ | B18: 3 | C18: 3 | D18: 100 | E18: 0 | F18: 0 | G18: 0 | H18: 0 | I18: 3 | J18: 100 | K18: 0 | L18: 0 | M18: 100 | N18: 0 | O18: 3
A19: Новозареченская СОШ | B19: 1 | C19: 1 | D19: 100 | E19: 0 | F19: 0 | G19: 1 | H19: 100 | I19: 0 | J19: 0 | K19: 0 | L19: 0 | M19: 100 | N19: 100 | O19: 4
A20: Потапово-Тумбарлин ООШ | B20: 10 | C20: 10 | D20: 100 | E20: 2 | F20: 20 | G20: 2 | H20: 20 | I20: 4 | J20: 40 | K20: 2 | L20: 20 | M20: 80 | N20: 40 | O20: 3.4
A21: Тат.Тумбарлинская СОШ | B21: 2 | C21: 2 | D21: 100 | E21: 0 | F21: 0 | G21: 1 | H21: 50 | I21: 1 | J21: 50 | K21: 0 | L21: 0 | M21: 100 | N21: 50 | O21: 3.5
A22: Поповская СОШ | B22: 13 | C22: 13 | D22: 100 | E22: 1 | F22: 8 | G22: 5 | H22: 40 | I22: 7 | J22: 56 | K22: 0 | L22: 0 | M22: 100 | N22: 46 | O22: 3.54
A23: Т.Кандызская СОШ | B23: 3 | C23: 3 | D23: 100 | E23: 0 | F23: 0 | G23: 2 | H23: 66.6 | I23: 1 | J23: 33.3 | K23: 0 | L23: 0 | M23: 100 | N23: 66.6 | O23: 3.6
A24: Крым-Сарайская ООШ | B24: 5 | C24: 5 | D24: 100 | E24: 0 | F24: 0 | G24: 3 | H24: 60 | I24: 2 | J24: 40 | K24: 0 | L24: 0 | M24: 100 | N24: 60 | O24: 3.6
A25: район | B25: =SUM(B5:B24) -> 296 | C25: 273 | D25: 92.2 | E25: 7 | F25: 2.6 | G25: 94 | H25: 34.4 | I25: 151 | J25: 55.3 | K25: 23 | L25: 8.4 | M25: 91.6 | N25: 37.0 | O25: 3.3

Sheet химия9
B1: Анализ контрольной работы за 2 четверть 2020/2021 учебного года по химии, 9 класс
C2: выполняли | E2: получили "5" | G2: получили "4" | I2: получили "3" | K2: получили "2" | M2: успеваемость | N2: качество | O2: средняя оценка
A3: ОО | B3: кол-во учащихся (всего) | C3: кол-во участников | D3: % | E3: количество | F3: % | G3: количество | H3: % | I3: количество | J3: % | K3: количество | L3: %
A4: СОШ № 1 | B4: 14 | C4: 14 | D4: 100.00% | E4: 1 | F4: 7% | G4: 6 | H4: 43% | I4: 6 | J4: 43% | K4: 1 | L4: 7% | M4: 93% | N4: 50% | O4: 3.92
A5: СОШ № 2 | B5: 55 | C5: 48 | D5: 87 | E5: 5 | F5: 10 | G5: 13 | H5: 27 | I5: 30 | J5: 63 | K5: 0 | L5: 0 | M5: 100 | N5: 37.5 | O5: 3.5
A6: СОШ № 3 | B6: 16 | C6: 14 | D6: 87.50% | E6: 0 | F6: 0.00 | G6: 7 | H6: 50.00% | I6: 4 | J6: 28.50% | K6: 3 | L6: 21.5% | M6: 78.00% | N6: 50.00% | O6: 3.3
A7: Гимназия№4 | B7: 7 | C7: 7 | D7: 100 | E7: 0 | F7: 0 | G7: 3 | H7: 43 | I7: 4 | J7: 57 | K7: 0 | L7: 0 | M7: 100 | N7: 43 | O7: 3,4
A8: СОШ № 5 | B8: 37 | C8: 35 | D8: 94.59% | E8: 3 | F8: 8.57% | G8: 20 | H8: 57.14% | I8: 11 | J8: 31.42% | K8: 1 | L8: 3% | M8: 97.14% | N8: 65.70% | O8: 3.65
A9: СОШ № 6 | B9: 44 | C9: 39 | D9: 89% | E9: 1 | F9: 3% | G9: 21 | H9: 54% | I9: 12 | J9: 31% | K9: 5 | L9: 13% | M9: 87% | N9: 56% | O9: 3,5
A10: СОШ №7 | B10: 44 | C10: 38 | D10: 86% | E10: 0 | G10: 5 | H10: 13% | I10: 33 | J10: 87% | K10: 0 | L10: % | M10: 100% | N10: 13% | O10: 3.2
A11: Александровская СОШ | B11: 10 | C11: 8 | D11: 80% | E11: 1 | F11: 13% | G11: 1 | H11: 13% | I11: 6 | J11: 75% | K11: 0 | L11: 0% | M11: 100% | N11: 25% | O11: 3.375
A12: Алексеевская ООШ | B12: 2 | C12: 2 | D12: 100 | E12: 0 | F12: 0 | G12: 0 | H12: 0 | I12: 2 | J12: 100 | K12: 0 | L12: 0 | M12: 100 | N12: 0 | O12: 3
A13: Исергаповская СОШ | B13: 8 | C13: 7 | D13: =(C13/B13)*100 -> 87.5 | G13: 2 | H13: =(G13/C13)*100 -> 28.6 | I13: 3 | J13: =(I13/C13)*100 -> 42.9 | K13: 2 | L13: =(K13/C13)*100 -> 28.6 | M13: =(5/7)*100 -> 71.4 | N13: =(2/7)*100 -> 28.6 | O13: =22/7 -> 3.1
A14: Кзыл-Ярская СОШ | B14: 10 | C14: 8 | D14: 80 | E14: 0 | G14: 2 | H14: 25 | I14: 6 | J14: 75 | K14: 0 | L14: 0 | M14: 100% | N14: 25.00% | O14: 3.25%
A15: П-Урустамакская СОШ | B15: 10 | C15: 9 | D15: 100 | E15: 0 | F15: 0 | G15: 4 | H15: =100/C15*G15 -> 44 | I15: 3 | J15: =100/C15*I15 -> 33 | K15: 3 | L15: =100/C15*K15 -> 33.33333333 | M15: 67 | N15: 44 | O15: 3.3
A16: Шалтинская ООШ | B16: 4 | C16: 4 | D16: 100 | E16: 1 | F16: 25 | G16: 1 | H16: 25 | I16: 2 | J16: 50 | K16: 0 | L16: 0 | M16: 100 | N16: 50 | O16: 3.7
A17: Ново-Чутинская ООШ | B17: 3 | C17: 3 | D17: 100 | E17: 0 | F17: 0 | G17: 1 | H17: 33 | I17: 2 | J17: 67 | K17: 0 | L17: 0 | M17: 100 | N17: 33 | O17: 3.7
A18: Новозареченская СОШ | B18: 1 | C18: 1 | D18: 100 | E18: 0 | F18: 0 | G18: 0 | H18: 0 | I18: 1 | J18: 100 | K18: 0 | L18: 0 | M18: 100 | N18: 0 | O18: 3
A19: Потапово-Тумбарлин ООШ | B19: 10 | C19: 10 | D19: 100 | E19: 3 | F19: 30 | G19: 4 | H19: 40 | I19: 3 | J19: 30 | K19: 0 | L19: 0 | M19: 100 | N19: 70 | O19: 4
A20: Тат.Тумбарлинская СОШ | B20: 2 | C20: 2 | D20: 100 | E20: 0 | F20: 0 | G20: 1 | H20: 50 | I20: 1 | J20: 50 | K20: 0 | L20: 0 | M20: 100 | N20: 50 | O20: 3.50
A21: Поповская СОШ | B21: 13 | C21: 13 | D21: 100 | E21: 1 | F21: 8 | G21: 2 | H21: 15 | I21: 10 | J21: 77 | K21: 0 | L21: 0 | M21: 100 | N21: 23 | O21: 3.31
A22: Т.Кандызская СОШ | B22: 3 | C22: 3 | D22: 100 | E22: 0 | F22: 0 | G22: 0 | H22: 0 | I22: 3 | J22: 100 | K22: 0 | L22: 0 | M22: 100 | N22: 0 | O22: 3
A23: Крым-Сарайская ООШ | B23: 5 | C23: 5 | D23: 100 | E23: 0 | F23: 0 | G23: 1 | H23: 20 | I23: 2 | J23: 40 | K23: 2 | L23: 40 | M23: 60 | N23: 20 | O23: 2.8
A24: район | B24: =SUM(B4:B23) -> 298 | C24: 270 | D24: 90.6 | E24: 16 | F24: 5.9 | G24: 94 | H24: 34.8 | I24: 144 | J24: 53.3 | K24: 17 | L24: 6.3 | M24: 93.7 | N24: 40.7 | O24: 3.4

Sheet Лист1
